bitfinex/quotes_SOLUSD_20251116
["timestamp","ask_amount","ask_price","bid_price","bid_amount"]
[1763266102973,3.35627717,141.47,141.42,27.93632037]
[1763266103161,0.65,141.46,141.43,0.66]
[1763266103676,0.65,141.46,141.42,27.27632037]
[1763266103873,0.65,141.46,141.42,27.93632037]
[1763266104253,0.65,141.46,141.43,0.66]
[1763266104572,2.70627717,141.48,141.44,2.70627717]
[1763266104758,9.78882769,141.48,141.45,2.70627717]
[1763266104959,107.55627717,141.51,141.46,3.36627717]
[1763266105165,10.43882769,141.5,141.46,3.36627717]
[1763266105462,13.14510486,141.5,141.46,0.66]
[1763266105647,0.65,141.49,141.46,3.36627717]
[1763266108768,0.65,141.49,141.45,25.35747717]
[1763266109060,3.35627717,141.49,141.45,26.01747717]
[1763266109269,2.70627717,141.47,141.43,3.36627717]
[1763266109778,0.65,141.46,141.43,3.36627717]
[1763266110877,0.65,141.46,141.43,2.3914256]
[1763266113085,0.65,141.47,141.43,2.3914256]
[1763266113297,0.65,141.47,141.44,2.3914256]
[1763266116493,0.65,141.47,141.43,2.3914256]
[1763266117080,0.65,141.47,141.43,1.7314256]
[1763266117584,0.65,141.47,141.43,2.3914256]
[1763266117786,2.3814256,141.47,141.43,2.3914256]
[1763266118960,0.65,141.46,141.43,2.3914256]
[1763266126696,9.78882769,141.5,141.44,1.7314256]
[1763266126892,9.78882769,141.5,141.47,1.7314256]
[1763266126893,10.46882769,141.5,141.47,1.7314256]
[1763266127080,12.20025329,141.5,141.46,2.4114256]
[1763266127392,0.68,141.49,141.46,2.4114256]
[1763266128486,0.68,141.49,141.45,2.4114256]
[1763266128990,0.68,141.49,141.46,1.7314256]
[1763266130090,0.68,141.49,141.46,2.4114256]
[1763266132298,0.68,141.49,141.46,0.68]
[1763266136501,0.68,141.49,141.45,1.7314256]
[1763266136701,0.68,141.49,141.45,2.4114256]
[1763266138412,2.4114256,141.49,141.45,2.4114256]
[1763266138598,2.4114256,141.49,141.45,1.7314256]
[1763266138803,2.4114256,141.49,141.46,0.68]
[1763266139112,0.68,141.48,141.45,2.4114256]
[1763266140105,0.68,141.48,141.45,1.7314256]
[1763266140281,0.68,141.48,141.45,2.4114256]
[1763266140483,9.78882769,141.47,141.42,1.9188432]
[1763266140682,11.52025329,141.47,141.42,1.9188432]
[1763266140917,0.68,141.46,141.42,4.3302688]
[1763266144311,0.68,141.46,141.43,1.7314256]
[1763266145409,0.68,141.46,141.42,1.9188432]
[1763266145410,1.7314256,141.44,141.42,1.9188432]
[1763266145715,2.4114256,141.43,141.42,1.9188432]
[1763266149728,12.20025329,141.43,141.42,1.9188432]
[1763266156602,13.93167889,141.43,141.42,1.9188432]
[1763266156806,19.12595569,141.43,141.42,1.9188432]
[1763266157600,12.20025329,141.43,141.42,1.9188432]
[1763266159119,11.52025329,141.43,141.42,1.9188432]
[1763266159910,12.19025329,141.43,141.42,1.9188432]
[1763266160220,11.52025329,141.43,141.42,1.9188432]
[1763266160416,1.7314256,141.44,141.42,1.9188432]
[1763266160936,1.7314256,141.44,141.42,2.6288432]
[1763266161105,9.78882769,141.44,141.42,2.6288432]
[1763266162426,2.4014256,141.43,141.42,1.9188432]
[1763266162844,12.19025329,141.43,141.42,1.9188432]
[1763266169108,104.87,141.46,141.42,2.6288432]
[1763266169345,1.7314256,141.44,141.42,2.6288432]
[1763266170047,2.4014256,141.43,141.42,1.9188432]
[1763266170913,3.37773567,141.43,141.42,1.9188432]
[1763266171608,9.78882769,141.44,141.42,2.6288432]
[1763266171829,2.70773567,141.43,141.42,1.9188432]
[1763266172011,12.49656336,141.43,141.42,1.9188432]
[1763266172614,2.70773567,141.43,141.42,2.6288432]
[1763266172922,2.70773567,141.44,141.42,1.9188432]
[1763266173236,2.70773567,141.44,141.42,2.6288432]
[1763266173435,13.16656336,141.45,141.42,2.6288432]
[1763266173817,9.78882769,141.46,141.43,0.71]
[1763266175222,12.49656336,141.46,141.43,0.71]
[1763266177031,104.2,141.49,141.43,0.71]
[1763266177235,9.78882769,141.5,141.46,2.70773567]
[1763266177419,2.70773567,141.51,141.47,0.71]
[1763266177620,3.37773567,141.51,141.47,0.71]
[1763266177835,9.78882769,141.5,141.47,0.71]
[1763266178031,3.37773567,141.51,141.47,0.71]
[1763266178237,9.78882769,141.52,141.48,2.70773567]
[1763266178615,9.78882769,141.52,141.49,0.71]
[1763266178819,3.69518468,141.56,141.49,3.41773567]
[1763266179020,9.78882769,141.55,141.51,2.70773567]
[1763266179250,0.2,141.57,141.53,2.70773567]
[1763266179751,9.98882769,141.57,141.54,0.71]
[1763266180358,0.2,141.57,141.54,0.71]
[1763266180517,0.2,141.57,141.54,3.41773567]
[1763266181619,13.36656336,141.57,141.52,22.6512]
[1763266181823,2.70773567,141.54,141.5,3.41773567]
[1763266182063,2.70773567,141.54,141.5,26.06893567]
[1763266182221,3.37773567,141.54,141.5,26.06893567]
[1763266182421,0.67,141.54,141.5,26.06893567]
[1763266182947,2.70773567,141.53,141.5,0.71]
[1763266183148,2.70773567,141.51,141.47,2.70773567]
[1763266183320,2.70773567,141.51,141.48,0.67]
[1763266183521,0.72,141.51,141.48,3.37773567]
[1763266183739,12.49656336,141.52,141.48,3.37773567]
[1763266183920,12.49656336,141.52,141.49,0.67]
[1763266184445,9.78882769,141.52,141.49,0.67]
[1763266185743,10.50882769,141.52,141.49,0.67]
[1763266186651,9.78882769,141.52,141.49,3.37773567]
[1763266186861,10.50882769,141.52,141.49,3.37773567]
[1763266187147,10.50882769,141.52,141.49,0.67]
[1763266189940,9.78882769,141.55,141.51,2.70773567]
[1763266190244,13.21656336,141.55,141.51,0.67]
[1763266190447,3.42773567,141.54,141.51,0.67]
[1763266190858,9.78882769,141.55,141.51,3.37773567]
[1763266191036,9.78882769,141.56,141.53,2.70773567]
[1763266191530,9.78882769,141.56,141.54,2.70773567]
[1763266191954,0.92,141.57,141.55,3.37773567]
[1763266191955,0.2,141.57,141.55,3.37773567]
[1763266192248,0.2,141.57,141.55,2.70773567]
[1763266192664,0.2,141.57,141.56,2.70773567]
[1763266192840,0.2,141.57,141.55,3.37773567]
[1763266193030,0.2,141.57,141.55,2.70773567]
[1763266193231,0.2,141.57,141.55,3.37773567]
[1763266194930,0.92,141.57,141.55,2.70773567]
[1763266195451,0.2,141.57,141.55,2.70773567]
[1763266195838,0.92,141.57,141.55,2.70773567]
[1763266197353,0.92,141.57,141.54,3.37773567]
[1763266200856,9.98882769,141.57,141.48,17.0]
[1763266201069,2.70773567,141.55,141.51,3.37773567]
[1763266201256,2.70773567,141.55,141.51,26.02893567]
[1763266201257,0.72,141.54,141.51,26.02893567]
[1763266201756,0.72,141.54,141.51,2.70773567]
[1763266201962,10.70882769,141.57,141.53,2.70773567]
[1763266202257,10.70882769,141.57,141.54,2.70773567]
[1763266202258,0.2,141.57,141.54,2.70773567]
[1763266202438,0.2,141.57,141.55,3.37773567]
[1763266202957,0.2,141.57,141.56,26.02893567]
[1763266203637,0.2,141.57,141.56,3.37773567]
[1763266204874,0.2,141.57,141.56,26.02893567]
[1763266205079,0.2,141.57,141.56,33.09307808]
[1763266205356,0.2,141.57,141.56,3.37773567]
[1763266206173,0.2,141.59,141.57,22.6512]
[1763266206477,0.2,141.59,141.58,25.35893567]
[1763266206638,0.2,141.59,141.58,3.37773567]
[1763266209167,0.2,141.59,141.58,33.09208018]
[1763266209647,0.2,141.59,141.58,35.79981585]
[1763266211155,0.2,141.59,141.58,3.37773567]
[1763266211350,0.2,141.59,141.58,26.02893567]
[1763266211533,0.2,141.59,141.58,3.37773567]
[1763266211933,0.2,141.59,141.58,28.73667134]
[1763266212161,0.2,141.6,141.58,35.79981585]
[1763266212344,0.2,141.6,141.59,6.08547134]
[1763266212869,0.2,141.6,141.59,13.148117]
[1763266213742,0.2,141.6,141.59,6.08547134]
[1763266214952,0.2,141.6,141.59,28.73667134]
[1763266215150,0.2,141.6,141.59,35.799317]
[1763266215467,0.2,141.6,141.59,28.73667134]
[1763266216042,0.2,141.6,141.59,22.6512]
[1763266216262,0.85,141.6,141.56,62.48]
[1763266216439,0.85,141.6,141.58,2.70773567]
[1763266216644,0.2,141.6,141.59,2.70773567]
[1763266217139,0.85,141.6,141.58,2.70773567]
[1763266219373,0.65,141.59,141.58,2.70773567]
[1763266220075,3.35773567,141.59,141.53,2.70773567]
[1763266220262,3.35773567,141.59,141.51,0.68]
[1763266220263,2.70773567,141.58,141.54,2.70773567]
[1763266220462,3.35773567,141.58,141.54,2.70773567]
[1763266220653,0.65,141.57,141.54,2.70773567]
[1763266221862,0.65,141.57,141.55,2.70773567]
[1763266226281,0.65,141.57,141.53,23.3312]
[1763266226474,0.65,141.57,141.55,2.70773567]
[1763266227367,0.85,141.6,141.56,3.38773567]
[1763266227564,0.85,141.6,141.59,2.70773567]
[1763266227882,0.85,141.6,141.58,2.70773567]
[1763266228363,0.2,141.6,141.58,2.70773567]
[1763266228773,0.85,141.6,141.58,2.70773567]
[1763266229490,0.85,141.6,141.57,22.6512]
[1763266229491,0.65,141.59,141.57,22.6512]
[1763266229663,0.65,141.59,141.56,2.70773567]
[1763266230780,0.2,141.6,141.57,2.70773567]
[1763266230960,0.85,141.6,141.57,1.727879]
[1763266231461,0.65,141.59,141.57,1.727879]
[1763266231662,0.2,141.6,141.58,2.407879]
[1763266231989,0.2,141.6,141.59,1.727879]
[1763266232159,0.2,141.6,141.59,2.407879]
[1763266234064,0.2,141.6,141.59,1.727879]
[1763266235870,0.2,141.6,141.59,2.407879]
[1763266240485,0.2,141.6,141.59,1.727879]
[1763266241703,0.2,141.6,141.59,2.407879]
[1763266242469,0.2,141.6,141.59,24.379079]
[1763266243002,0.2,141.6,141.59,25.059079]
[1763266245112,0.2,141.6,141.59,33.84960366]
[1763266245401,0.2,141.62,141.59,39.03324066]
[1763266245708,0.2,141.62,141.61,1.727879]
[1763266246072,0.2,141.62,141.61,2.447879]
[1763266246678,0.2,141.62,141.61,1.727879]
[1763266247597,0.2,141.62,141.61,24.379079]
[1763266247789,0.91,141.62,141.61,1.727879]
[1763266250082,0.2,141.62,141.61,1.727879]
[1763266250285,0.91,141.62,141.61,1.727879]
[1763266256908,0.2,141.62,141.61,1.727879]
[1763266257213,0.2,141.62,141.61,2.447879]
[1763266257607,0.2,141.62,141.61,1.727879]
[1763266259611,0.2,141.62,141.61,2.447879]
[1763266260416,0.2,141.62,141.61,27.92883387]
[1763266261582,0.2,141.62,141.61,12.33928205]
[1763266261792,0.2,141.62,141.61,34.99048205]
[1763266262186,0.2,141.64,141.63,24.379079]
[1763266262596,0.2,141.64,141.63,2.447879]
[1763266262829,0.2,141.64,141.63,25.099079]
[1763266263213,0.2,141.64,141.63,0.72]
[1763266263499,0.2,141.64,141.63,25.099079]
[1763266263814,0.2,141.64,141.63,32.15972999]
[1763266264321,0.2,141.64,141.63,25.099079]
[1763266268527,0.2,141.64,141.63,27.92823343]
[1763266270131,0.2,141.64,141.63,5.27703343]
[1763266270427,0.91,141.64,141.63,24.379079]
[1763266271920,0.2,141.64,141.63,24.379079]
[1763266274341,0.2,141.64,141.63,22.6512]
[1763266274638,0.2,141.64,141.63,24.379079]
[1763266275535,0.2,141.64,141.63,22.6512]
[1763266275742,0.2,141.64,141.63,24.379079]
[1763266276950,0.86,141.64,141.63,24.379079]
[1763266277146,0.2,141.64,141.63,24.379079]
[1763266278851,0.2,141.64,141.56,8.53323936]
[1763266278852,0.86,141.64,141.56,8.53323936]
[1763266279064,2.587879,141.64,141.6,1.727879]
[1763266279357,0.66,141.63,141.6,1.727879]
[1763266279651,0.66,141.63,141.6,24.379079]
[1763266280450,2.387879,141.63,141.55,0.69]
[1763266280632,1.727879,141.61,141.57,1.727879]
[1763266280830,1.727879,141.61,141.56,1.727879]
[1763266281034,0.66,141.6,141.56,1.727879]
[1763266281219,2.387879,141.6,141.53,9.78882769]
[1763266281441,0.66,141.6,141.53,9.78882769]
[1763266281747,2.387879,141.59,141.55,1.727879]
[1763266282044,0.66,141.59,141.55,1.727879]
[1763266282250,0.66,141.58,141.55,1.727879]
[1763266283447,0.66,141.58,141.54,22.6512]
[1763266283448,0.66,141.58,141.56,1.727879]
[1763266287223,1.727879,141.61,141.57,1.727879]
[1763266287448,0.66,141.6,141.57,1.727879]
[1763266287640,0.66,141.6,141.55,0.69]
[1763266288148,0.66,141.63,141.55,7.75463387]
[1763266288338,0.66,141.63,141.56,9.78882769]
[1763266288536,0.66,141.63,141.59,24.379079]
[1763266288739,0.66,141.63,141.61,1.727879]
[1763266289773,0.66,141.63,141.62,1.727879]
[1763266290736,0.66,141.63,141.6,22.6512]
[1763266290934,0.66,141.63,141.62,1.727879]
[1763266291177,0.66,141.63,141.61,1.727879]
[1763266291862,0.66,141.63,141.61,24.379079]
[1763266292870,0.66,141.63,141.61,25.34975348]
[1763266293761,0.66,141.63,141.59,22.6512]
[1763266293970,0.66,141.63,141.6,2.69855348]
[1763266295271,0.66,141.63,141.59,2.69855348]
[1763266295568,3.35855348,141.63,141.59,2.69855348]
[1763266295764,2.69855348,141.62,141.58,2.69855348]
[1763266295972,2.69855348,141.62,141.56,2.69855348]
[1763266295973,2.69855348,141.61,141.56,2.69855348]
[1763266296150,3.35855348,141.61,141.56,2.69855348]
[1763266296351,0.66,141.6,141.57,25.34975348]
[1763266296551,2.69855348,141.59,141.52,61.8]
[1763266296746,0.66,141.6,141.56,2.69855348]
[1763266296964,0.66,141.59,141.56,25.34975348]
[1763266301386,0.2,141.64,141.57,3.38855348]
[1763266301677,0.66,141.61,141.58,2.69855348]
[1763266302476,0.66,141.63,141.6,2.69855348]
[1763266302655,0.66,141.61,141.6,2.69855348]
[1763266303985,0.66,141.61,141.59,2.69855348]
[1763266305272,2.89855348,141.64,141.59,25.34975348]
[1763266305566,0.71,141.63,141.59,26.05975348]
[1763266305957,0.71,141.63,141.59,25.34975348]
[1763266307452,0.71,141.63,141.6,2.69855348]
[1763266307653,0.2,141.64,141.62,2.69855348]
[1763266307881,0.91,141.64,141.62,2.69855348]
[1763266309178,0.71,141.63,141.61,22.6512]
[1763266309366,0.71,141.63,141.61,25.34975348]
[1763266309882,0.71,141.63,141.61,22.6512]
[1763266310486,9.78882769,141.61,141.5,7.84323936]
[1763266310665,0.71,141.61,141.57,2.69855348]
[1763266310855,0.71,141.61,141.54,2.69855348]
[1763266310856,0.2,141.64,141.6,2.69855348]
[1763266311057,0.71,141.63,141.6,2.69855348]
[1763266311277,0.71,141.63,141.59,2.69855348]
[1763266311662,0.71,141.63,141.59,3.40855348]
[1763266311896,0.71,141.63,141.6,2.69855348]
[1763266312193,0.91,141.64,141.61,2.69855348]
[1763266312360,0.91,141.64,141.6,3.40855348]
[1763266316470,0.71,141.63,141.59,26.05975348]
[1763266317503,3.40855348,141.63,141.58,2.69855348]
[1763266317667,3.40855348,141.63,141.58,3.40855348]
[1763266317987,0.71,141.62,141.59,0.71]
[1763266318191,0.71,141.62,141.59,3.40855348]
[1763266318363,0.71,141.62,141.59,26.05975348]
[1763266319188,3.60855348,141.64,141.59,26.05975348]
[1763266319366,0.71,141.63,141.59,26.05975348]
[1763266320377,0.2,141.64,141.61,2.69855348]
[1763266320576,0.91,141.64,141.61,2.69855348]
[1763266320893,0.91,141.64,141.6,3.40855348]
[1763266322666,0.2,141.64,141.61,0.71]
[1763266323384,0.91,141.64,141.61,0.71]
[1763266323568,0.2,141.64,141.61,3.40855348]
[1763266323775,0.2,141.64,141.62,25.34975348]
[1763266323984,0.2,141.64,141.62,28.88950835]
[1763266324166,0.2,141.64,141.63,0.71]
[1763266325171,0.2,141.64,141.61,2.69855348]
[1763266325172,0.91,141.64,141.61,2.69855348]
[1763266325491,0.2,141.64,141.61,12.68738117]
[1763266325689,0.2,141.64,141.62,0.71]
[1763266326381,0.71,141.63,141.61,12.68738117]
[1763266326691,0.91,141.64,141.6,6.23870878]
[1763266328097,0.91,141.64,141.6,3.40855348]
[1763266328397,0.2,141.64,141.61,6.23870878]
[1763266329796,0.2,141.64,141.61,3.40855348]
[1763266330685,0.2,141.64,141.6,5.52870878]
[1763266330996,0.91,141.64,141.61,0.71]
[1763266331861,0.71,141.63,141.6,2.8301553]
[1763266332071,3.40855348,141.63,141.58,2.69855348]
[1763266332280,3.40855348,141.63,141.58,15.38593465]
[1763266332476,0.71,141.62,141.58,16.09593465]
[1763266332864,0.71,141.62,141.58,15.38593465]
[1763266333092,0.71,141.62,141.58,2.69855348]
[1763266334490,0.71,141.62,141.58,3.36855348]
[1763266334698,0.71,141.62,141.59,3.36855348]
[1763266336702,0.71,141.62,141.59,2.69855348]
[1763266337774,12.68738117,141.64,141.59,2.69855348]
[1763266338007,13.40738117,141.64,141.6,0.68]
[1763266338495,10.70882769,141.64,141.6,3.37855348]
[1763266338887,9.98882769,141.64,141.6,3.37855348]
[1763266339093,0.72,141.63,141.6,3.37855348]
[1763266339601,0.72,141.63,141.6,2.69855348]
[1763266339796,3.41855348,141.63,141.58,13.36738117]
[1763266340011,3.41855348,141.63,141.59,0.68]
[1763266340174,0.72,141.62,141.59,0.68]
[1763266340473,0.2,141.64,141.61,25.34975348]
[1763266340674,0.2,141.64,141.63,2.69855348]
[1763266341070,0.2,141.64,141.63,3.37855348]
[1763266341883,0.2,141.64,141.63,0.68]
[1763266342071,0.2,141.64,141.63,3.37855348]
[1763266349611,0.2,141.64,141.63,2.69855348]
[1763266350405,0.2,141.64,141.63,3.37855348]
[1763266352019,0.2,141.64,141.63,0.68]
[1763266353706,0.2,141.64,141.62,12.39541935]
[1763266353907,0.2,141.64,141.63,0.68]
[1763266355708,0.2,141.64,141.63,2.40659166]
[1763266356102,0.2,141.64,141.63,5.23634653]
[1763266362412,0.2,141.64,141.63,26.16095487]
[1763266362613,0.2,141.64,141.63,27.88754653]
[1763266364228,0.2,141.64,141.63,26.16095487]
[1763266364430,0.2,141.64,141.63,27.88754653]
[1763266366236,0.2,141.64,141.63,26.16095487]
[1763266366432,0.2,141.64,141.63,27.88754653]
[1763266367919,0.89,141.64,141.63,25.48095487]
[1763266368121,0.2,141.64,141.63,22.6512]
[1763266372232,0.89,141.64,141.63,22.6512]
[1763266372434,0.2,141.64,141.63,22.6512]
[1763266373009,0.89,141.64,141.63,22.6512]
[1763266373527,0.2,141.64,141.63,22.6512]
[1763266374136,0.89,141.64,141.61,0.67]
[1763266374319,0.89,141.64,141.61,25.04779166]
[1763266374513,0.89,141.64,141.61,27.87774673]
[1763266375138,0.69,141.63,141.61,4.55654673]
[1763266375339,0.89,141.64,141.61,5.22654673]
[1763266376445,0.2,141.64,141.62,25.04779166]
[1763266376815,0.2,141.64,141.62,27.87774673]
[1763266377840,0.2,141.64,141.63,1.72659166]
[1763266378144,0.2,141.64,141.63,5.22634653]
[1763266380747,0.2,141.64,141.63,2.82975487]
[1763266381522,0.89,141.64,141.63,2.82975487]
[1763266381722,0.89,141.64,141.62,22.6512]
[1763266382026,0.69,141.63,141.62,22.6512]
[1763266382644,0.69,141.63,141.6,1.72659166]
[1763266382950,0.69,141.63,141.6,5.22674696]
[1763266385228,0.69,141.63,141.62,22.6512]
[1763266385555,0.69,141.63,141.6,2.8301553]
[1763266385862,1.72659166,141.61,141.56,0.67]
[1763266386023,1.72659166,141.58,141.56,2.8309565]
[1763266386222,1.72659166,141.58,141.53,2.39659166]
[1763266386422,2.41659166,141.57,141.53,31.83443936]
[1763266386630,2.41659166,141.57,141.53,31.16443936]
[1763266386836,0.69,141.56,141.53,33.56103102]
[1763266387047,1.72659166,141.58,141.54,1.72659166]
[1763266387238,0.69,141.57,141.54,1.72659166]
[1763266387628,9.78882769,141.6,141.54,2.39659166]
[1763266387851,0.69,141.57,141.54,2.39659166]
[1763266388822,0.69,141.57,141.54,1.72659166]
[1763266389025,0.69,141.57,141.54,2.39659166]
[1763266389948,0.69,141.57,141.53,32.89103102]
[1763266390152,2.41659166,141.57,141.52,2.39659166]
[1763266390353,2.41659166,141.57,141.52,25.04779166]
[1763266390524,0.69,141.56,141.52,25.04779166]
[1763266392036,2.41659166,141.58,141.53,2.39659166]
[1763266392246,0.2,141.64,141.56,1.72659166]
[1763266392563,2.41659166,141.61,141.56,24.37779166]
[1763266392863,0.69,141.6,141.56,25.04779166]
[1763266393232,2.41659166,141.6,141.56,25.04779166]
[1763266394758,0.69,141.6,141.57,1.72659166]
[1763266394944,0.67,141.62,141.59,1.72659166]
[1763266395337,11.71541935,141.64,141.6,1.72659166]
[1763266395540,12.38541935,141.64,141.6,1.72659166]
[1763266395740,0.67,141.63,141.6,2.43659166]
[1763266395934,0.67,141.63,141.6,1.72659166]
[1763266396765,0.67,141.63,141.59,2.43659166]
[1763266397472,0.67,141.63,141.59,0.71]
[1763266397640,0.67,141.63,141.59,2.43659166]
[1763266398175,0.67,141.63,141.6,2.43659166]
[1763266398379,0.67,141.63,141.59,2.43659166]
[1763266399775,2.39659166,141.63,141.59,1.72659166]
[1763266400143,0.67,141.62,141.58,25.08779166]
[1763266402664,1.72659166,141.61,141.58,22.6512]
[1763266402867,1.72659166,141.6,141.58,22.6512]
[1763266403074,1.72659166,141.6,141.56,35.07661935]
[1763266403276,0.67,141.59,141.56,25.08779166]
[1763266404470,2.39659166,141.6,141.56,25.08779166]
[1763266404848,0.67,141.6,141.56,25.08779166]
[1763266407166,2.39659166,141.6,141.56,24.37779166]
[1763266407363,1.72659166,141.59,141.56,22.6512]
[1763266407544,2.39659166,141.59,141.56,22.6512]
[1763266407867,0.67,141.58,141.56,22.6512]
[1763266410877,0.67,141.58,141.55,2.43659166]
[1763266411867,9.98882769,141.64,141.56,25.08779166]
[1763266411868,2.39659166,141.61,141.56,25.08779166]
[1763266412051,2.39659166,141.61,141.57,1.72659166]
[1763266412267,0.67,141.6,141.57,2.43659166]
[1763266412982,0.67,141.6,141.57,0.71]
[1763266416903,3.37030573,141.6,141.57,0.71]
[1763266417402,0.67,141.6,141.57,0.71]
[1763266417698,0.67,141.6,141.55,3.41030573]
[1763266417699,0.67,141.59,141.55,3.41030573]
[1763266417888,0.67,141.59,141.56,0.71]
[1763266419403,2.70030573,141.61,141.56,0.71]
[1763266419602,0.67,141.59,141.56,3.41030573]
[1763266419903,0.67,141.59,141.54,32.44002769]
[1763266420083,2.70030573,141.58,141.54,22.6512]
[1763266420284,2.70030573,141.58,141.54,26.06150573]
[1763266420485,3.37030573,141.58,141.54,26.06150573]
[1763266420691,0.67,141.57,141.54,26.06150573]
[1763266422594,0.67,141.57,141.54,25.35150573]
[1763266423101,3.37030573,141.57,141.53,3.41030573]
[1763266423590,0.65,141.56,141.53,3.41030573]
[1763266425105,0.65,141.56,141.53,2.70030573]
[1763266425330,2.70030573,141.54,141.48,0.82]
[1763266425618,2.70030573,141.49,141.48,0.1]
[1763266425825,12.48913342,141.49,141.48,0.1]
[1763266426124,13.13913342,141.49,141.48,0.1]
[1763266427193,15.83943915,141.49,141.48,0.1]
[1763266428315,13.13913342,141.49,141.48,0.1]
[1763266429087,15.83943915,141.49,141.48,0.1]
[1763266429293,36.57409861,141.49,141.48,0.1]
[1763266430217,33.87379288,141.49,141.48,0.1]
[1763266431105,36.57409861,141.49,141.48,0.1]
[1763266432543,7.87228715,141.49,141.48,0.1]
[1763266432834,10.57259288,141.49,141.48,0.1]
[1763266433033,2.70030573,141.52,141.48,0.82]
[1763266433621,2.70030573,141.51,141.48,0.82]
[1763266434230,2.70030573,141.51,141.48,0.1]
[1763266434432,3.35030573,141.5,141.48,0.1]
[1763266435495,2.70030573,141.51,141.48,0.82]
[1763266436019,3.35030573,141.51,141.48,0.82]
[1763266437821,3.35030573,141.51,141.48,0.1]
[1763266439431,2.70030573,141.5,141.48,0.1]
[1763266441028,3.35030573,141.5,141.48,0.1]
[1763266441215,0.65,141.5,141.48,0.1]
[1763266443728,3.35030573,141.5,141.48,0.1]
[1763266444810,9.78882769,141.5,141.48,0.1]
[1763266445007,2.70030573,141.51,141.48,0.1]
[1763266445206,2.70030573,141.52,141.49,0.72]
[1763266445636,3.35030573,141.52,141.49,0.72]
[1763266447929,116.68913342,141.53,141.49,0.72]
[1763266448235,9.78882769,141.53,141.49,3.42030573]
[1763266448539,12.48913342,141.53,141.49,3.42030573]
[1763266448741,12.48913342,141.53,141.5,0.72]
[1763266448939,13.13913342,141.53,141.5,0.72]
[1763266449240,13.13913342,141.53,141.49,0.72]
[1763266449241,0.65,141.52,141.49,0.72]
[1763266449546,9.78882769,141.53,141.49,3.42030573]
[1763266449929,12.48913342,141.53,141.5,0.72]
[1763266450118,2.70030573,141.52,141.5,0.72]
[1763266451121,13.13913342,141.53,141.5,0.72]
[1763266453129,10.43882769,141.53,141.5,3.42030573]
[1763266453440,9.78882769,141.53,141.5,3.42030573]
[1763266453644,9.78882769,141.53,141.5,3.36030573]
[1763266454345,10.50882769,141.53,141.5,3.36030573]
[1763266456934,26.34626137,141.56,141.5,2.70030573]
[1763266457249,10.50882769,141.55,141.49,22.6512]
[1763266457447,12.48913342,141.54,141.48,23.4112]
[1763266457621,13.20913342,141.54,141.49,2.70030573]
[1763266457826,0.72,141.53,141.49,3.36030573]
[1763266458025,3.42030573,141.56,141.52,2.70030573]
[1763266458226,9.78882769,141.55,141.52,2.70030573]
[1763266458446,10.50882769,141.55,141.52,2.70030573]
[1763266458622,10.50882769,141.55,141.52,3.36030573]
[1763266459954,9.78882769,141.55,141.52,3.36030573]
[1763266460447,9.78882769,141.55,141.53,0.66]
[1763266461731,9.78882769,141.55,141.53,3.36030573]
[1763266463558,10.50882769,141.55,141.53,2.70030573]
[1763266463741,10.50882769,141.55,141.52,2.70030573]
[1763266464261,0.72,141.54,141.48,25.45150573]
[1763266464440,3.42030573,141.54,141.5,2.70030573]
[1763266464641,0.72,141.54,141.5,3.36030573]
[1763266465063,0.72,141.53,141.51,2.70030573]
[1763266465239,12.48913342,141.55,141.5,3.36030573]
[1763266465557,0.72,141.54,141.5,3.36030573]
[1763266468159,9.78882769,141.52,141.48,2.80030573]
[1763266468366,9.78882769,141.52,141.48,3.46030573]
[1763266468540,10.50882769,141.52,141.48,3.46030573]
[1763266469267,10.50882769,141.52,141.49,2.70030573]